Workbook

Sheet XSA-Calc
B3: Rev | C3: Description | D3: By | E3: Chkd | F3: Appd | G3: Date
B4: 0 | C4: First Issue | D4: ABC | G4: 2012-11-10
B5: 1
B6: 2
B7: 3
B8: 4 | H8: Process Calculation Sheet
B9: V-12A
C11: XSA-Calc | D11: Vessel Cross Sectional Area Calculator
C13: Project Name | D13: Test Project
C14: Customer | D14: ABC Inc
C15: Vessel Name | D15: Surge Drum
C16: Tag No | D16: V-001
C19: Case | E19: A | F19: B | G19: C | P19: =E19 -> A | Q19: =F19 -> B | R19: =G19 -> C
C20: Vessel Internal Diameter, D | D20: mm | E20: 1500 | F20: 2000 | G20: 2000 | P20: =E20/1000 -> 1.5 | Q20: 2 | R20: 2
C21: Height of Fluid, h | D21: mm | E21: 225 | F21: 1000 | G21: 1500 | P21: 0.225 | Q21: 1 | R21: 1.5
C23: % of Diameter to Level H | D23: % | E23: =E21/E20 -> 0.15 | F23: =F21/F20 -> 0.5 | G23: =G21/G20 -> 0.75 | P23: =E23/1000 -> 0.00015 | Q23: 0.0005 | R23: 0.00075
C24: % of Total Area to Level H | D24: % | E24: =P33/P41 -> 0.09406020219 | F24: =Q33/Q41 -> 0.5 | G24: =R33/R41 -> 0.8044988905 | P24: 9.406020219e-05 | Q24: 0.0005 | R24: 0.0008044988905
C26: Area below Level h (Liquid) | D26: m2 | E26: =P33 -> 0.1662180976 | F26: =Q33 -> 1.570796327 | G26: =R33 -> 2.527407804 | O26: R = D/2 | P26: =P20/2 -> 0.75 | Q26: =Q20/2 -> 1 | R26: =R20/2 -> 1
C27: Area above Level h (Gas) | D27: m2 | E27: =E28-E26 -> 1.60092777 | F27: =F28-F26 -> 1.570796327 | G27: =G28-G26 -> 0.6141848493
C28: 100% Sectional Area, π*r2 | D28: m2 | E28: =P41 -> 1.767145868 | F28: =Q41 -> 3.141592654 | G28: =R41 -> 3.141592654 | O28: R^2 | P28: =P26^2 -> 0.5625 | Q28: =Q26^2 -> 1 | R28: =R26^2 -> 1
O29: R-h | P29: =P26-P21 -> 0.525 | Q29: =Q26-Q21 -> 0 | R29: =R26-R21 -> -0.5
C30: Width at Surface, W | D30: mm | E30: =P35*1000 -> 1071.214264 | F30: =Q35*1000 -> 2000 | G30: =R35*1000 -> 1732.050808 | O30: (R-h)^2 | P30: =P29^2 -> 0.275625 | Q30: =Q29^2 -> 0 | R30: =R29^2 -> 0.25
P32: To H | Q32: To H | R32: To H
O33: Af = R2 * cos-1((R-h)/R) - (R-h)*sqrt(2*R*h-h2) | P33: =P26^2*(ACOS((P26-P21)/P26))-((P26-P21)*SQRT(2*P26*P21-P21^2)) -> 0.1662180976 | Q33: =Q26^2*(ACOS((Q26-Q21)/Q26))-((Q26-Q21)*SQRT(2*Q26*Q21-Q21^2)) -> 1.570796327 | R33: =R26^2*(ACOS((R26-R21)/R26))-((R26-R21)*SQRT(2*R26*R21-R21^2)) -> 2.527407804
O35: W = 2*((R^2)-((R-h)^"))^.5 | P35: =2*((P28)-(P30))^0.5 -> 1.071214264 | Q35: =2*((Q28)-(Q30))^0.5 -> 2 | R35: =2*((R28)-(R30))^0.5 -> 1.732050808
P37: 100% Full | Q37: 100% Full | R37: 100% Full
P38: =P26^2*(ACOS((P26-P20)/P26))-((P26-P20)*SQRT(2*P26*P20-P20^2)) -> 1.767145868 | Q38: =Q26^2*(ACOS((Q26-Q20)/Q26))-((Q26-Q20)*SQRT(2*Q26*Q20-Q20^2)) -> 3.141592654 | R38: =R26^2*(ACOS((R26-R20)/R26))-((R26-R20)*SQRT(2*R26*R20-R20^2)) -> 3.141592654
P40: PI*r^2 | Q40: PI*r^2 | R40: PI*r^2
P41: =PI()*(E20/2000)^2 -> 1.767145868 | Q41: =PI()*(F20/2000)^2 -> 3.141592654 | R41: =PI()*(G20/2000)^2 -> 3.141592654
C49: Notes
B50: 1)
B51: 2)
B52: 3)
B53: 4)
B54: THIS DOCUMENT IS ISSUED AS PRELIMINARY DESIGN INFORMATION ONLY AND NO LIABILITY IS ACCEPTED OR IMPLIED FOR ACCURACY. ALL DATA SHOULD BE CHECKED AND VERIFIED BY QUALIFIED PERSONNEL. ©KIRK PROCESS SOLUTIONS LIMITED WWW.KIRKPROCESS.COM | D54: Document Title | H54: Document No.
D55: Level Calculations for | H55: ABC-12345
D56: Horizontal Drum | H56: Sheet 1 of 1
